[Event "1st Chessable Sunway Formentera 2022"]
[Site "Formentera Punta Prima"]
[Date "2022.05.01"]
[Round "3"]
[White "Vanduyfhuys, Daria"]
[Black "Sasikiran, Krishnan"]
[Result "0-1"]
[ECO "A90"]
[WhiteElo "2063"]
[BlackElo "2651"]
[Annotator "TA"]
[PlyCount "70"]
[EventDate "2022.05.05"]
[EventType "swiss"]
[EventCountry "ESP"]
[SourceTitle "playchess.com"]
[Source "ChessBase"]
[SourceQuality "1"]
[TimeControl "40/5400+30:1800+30"]

{[%evp 18,70,19,13,27,0,0,0,18,-4,0,0,12,-5,0,0,0,-4,-21,-40,0,0,0,-13,0,0,0,-10,-25,-29,0,0,-8,-452,52,0,0,-131,-25,-150,-191,-254,-218,-739,-731,-765,-722,-1310,-815,-766,-812,-750,-733,-677,-670]} 1. d4 {[%emt 0:00:03]} e6 {[%emt 0:00:20]} 2. c4 {[%emt 0:00:09]} f5 {[%emt 0:00:09]} 3. g3 {[%emt 0:00:34]} Nf6 {[%emt 0:00:24]} 4. Bg2 {[%emt 0:00:17]} c6 {[%emt 0:00:29]} 5. Nf3 {[%emt 0:01:07]} d5 {[%emt 0:00:19]} 6. O-O {[%emt 0:00:33]} Bd6 {[%emt 0:00:14]} 7. b3 {[%emt 0:00:53]} Qe7 {[%emt 0:01:09]} 8. a4 {[%emt 0:01:55]} a5 {[%emt 0:07:05]} 9. Ba3 {[%emt 0:01:39]} Bxa3 {[%emt 0:08:55]} 10. Nxa3 {[%emt 0:00:32]} Nbd7 {[%emt 0:00:18] A90: Dutch Defence: Miscellaneous and Modern Stonewall (with ...Bd6).} 11. Bh3 {[%emt 0:12:25] [#]} g6 $146 {[%emt 0:09:15]} ({Predecessor:} 11... Ng4 12. Bxg4 fxg4 13. Nd2 e5 14. e4 dxe4 15. Nxe4 exd4 16. Qxd4 O-O 17. Rfe1 Qe5 18. Nc2 Qxd4 19. Nxd4 {1-0 (85) Khotenashvili,B (2459)-Mkrtchian,L (2390) Heraklion 2017}) 12. Qc1 {[%emt 0:06:27]} Ne4 {[%emt 0:07:56] The position is equal.} 13. Qb2 {[%emt 0:08:38]} b6 {[%emt 0:08:56]} 14. Nc2 {[%emt 0:02:40]} Ba6 {[%emt 0:10:15]} 15. Rfc1 {[%emt 0:14:50]} O-O {[%emt 0:03:11]} 16. Nce1 {[%emt 0:00:48]} c5 {[%emt 0:01:29]} 17. e3 {[%emt 0:04:01]} Rac8 {[%emt 0:10:29]} 18. Bf1 {[%emt 0:01:19]} cxd4 {[%emt 0:05:55]} (18... g5 {with more complications.} 19. cxd5 Bxf1 20. dxe6 Qxe6 21. Kxf1 f4) 19. exd4 {[%emt 0:00:52]} f4 {[%emt 0:00:39]} 20. cxd5 {[%emt 0:10:05]} fxg3 {[%emt 0:00:59]} 21. hxg3 {[%emt 0:00:33]} Rxc1 {[%emt 0:00:42]} 22. Rxc1 {[%emt 0:01:22]} Bxf1 {[%emt 0:00:07]} 23. Kxf1 {[%emt 0:03:54]} exd5 {[%emt 0:02:35] Strongly threatening ...g5.} 24. Kg2 {[%emt 0:02:07]} g5 {[%emt 0:03:26]} 25. Nd3 $2 {[%emt 0:02:18][%mdl 8192] [#]} (25. Rc2 $1 $11 {and White stays safe.}) 25... Qf6 $2 {[%emt 0:04:19]} (25... Rxf3 $1 $19 {[%mdl 512]} 26. Rc8+ (26. Kxf3 Nd2+) 26... Rf8 27. Rxf8+ Kxf8) 26. Nfe1 {[%emt 0:04:22]} ({Better is} 26. Qe2 $14) 26... h5 {[%emt 0:03:16][%cal Bh7h5,Bh5h4][%mdl 32]} 27. Rc7 {[%emt 0:04:16] [#]} (27. Qe2 $11 {remains equal.}) 27... Qd6 $36 {[%emt 0:02:06][%mdl 2048] Black has the initiative.} ({Black should play} 27... h4 $1 $17 {[%cal Oh4g3] White must now prevent ...hxg3!} 28. Rxd7 hxg3) 28. Qc2 {[%emt 0:05:08]} (28. Rc2 $1 $11) 28... Ndc5 $1 $17 {[%emt 0:01:24] The board is on fire. Black is more active.} 29. Ra7 {[%emt 0:01:17] [#]} (29. Rxc5 $142 bxc5 30. dxc5) 29... Ne6 $1 $19 {[%emt 0:00:51]} 30. Qb2 $2 {[%emt 0:03:00]} (30. Kg1) 30... h4 {[%emt 0:01:10][%cal Rh4g3] Black is clearly winning.} 31. Kg1 {[%emt 0:02:31]} h3 {[%emt 0:01:52][%cal Oe4f2] Hoping for ...Nxf2!} 32. Qe2 {[%emt 0:01:03]} h2+ {[%emt 0:00:36]} 33. Kxh2 {[%emt 0:01:34] [#]} Rxf2+ $1 {[%emt 0:00:15][%mdl 512]} 34. Qxf2 {[%emt 0:00:16]} Nxf2 {[%emt 0:00:05]} 35. Nxf2 {[%emt 0:00:03]} Nxd4 {[%emt 0:00:46] Weighted Error Value: White=0.96/Black=0.62} 0-1

[Event "1st Chessable Sunway Formentera 2022"]
[Site "Formentera Punta Prima"]
[Date "2022.05.01"]
[Round "3"]
[White "Al-Hajiri, Bader"]
[Black "Garcia Martin, Marta"]
[Result "0-1"]
[ECO "D31"]
[WhiteElo "2052"]
[BlackElo "2326"]
[Annotator "TA"]
[PlyCount "56"]
[EventDate "2022.05.05"]
[EventType "swiss"]
[EventCountry "ESP"]
[SourceTitle "playchess.com"]
[Source "ChessBase"]
[SourceQuality "1"]
[TimeControl "40/5400+30:1800+30"]

{[%evp 9,56,0,0,0,0,-7,0,0,11,0,15,15,49,51,43,35,48,-25,-5,-10,181,154,172,0,41,-160,-150,-156,-145,-427,-348,-789,-767,-806,-525,-518,-512,-623,-487,-478,-479,-528,-442,-629,-508,-508,-508,-506,-499]} 1. d4 {[%emt 0:00:03]} d5 {[%emt 0:06:50]} 2. c4 {[%emt 0:00:43]} e6 {[%emt 0:00:06]} 3. Nc3 {[%emt 0:00:16]} a6 {[%emt 0:00:36]} 4. e4 {[%emt 0:01:44]} dxe4 {[%emt 0:00:31]} 5. Nxe4 {[%emt 0:00:14]} Bb4+ {[%emt 0:00:04]} 6. Nc3 $1 {[%emt 0:01:51] D31: Queen's Gambit Declined: Semi-Slav without ...Nf6 (+ Marshall Gambit and Noteboom) and Exchange Variation lines without ...Nf6.} c5 {[%emt 0:00:31]} 7. Be3 {[%emt 0:02:53] [#]} Ne7 $146 {[%emt 0:03:16]} ({Predecessor:} 7... cxd4 8. Bxd4 Nf6 9. Nf3 Nc6 10. Be2 Nxd4 11. Qxd4 Qxd4 12. Nxd4 Bxc3+ 13. bxc3 Ne4 {0-1 (41) Brahami,L (2201)-Ronka,E (2310) Chess.com INT 2021}) 8. a3 {[%emt 0:06:30] The position is equal.} Bxc3+ {[%emt 0:04:09]} 9. bxc3 {[%emt 0:00:07]} Qa5 {[%emt 0:05:03]} 10. Bd2 {[%emt 0:04:13]} O-O {[%emt 0:08:07]} 11. Nf3 {[%emt 0:00:19]} Nbc6 {[%emt 0:11:18]} 12. Bd3 {[%emt 0:02:49][%cal Od3h7] Black must now prevent Bxh7+!} Rd8 {[%emt 0:14:33]} 13. h4 {[%emt 0:08:55]} (13. Qc2 $14) 13... cxd4 {[%emt 0:06:36]} 14. cxd4 {[%emt 0:05:12]} Qh5 {[%emt 0:00:07] [#]} (14... Qc7 $1 $11) 15. g4 $1 $18 {[%emt 0:02:39]} Qxg4 {[%emt 0:00:06] [#]} 16. Bxh7+ $1 {[%emt 0:02:03][%mdl 512] A strong pair of Bishops.} Kf8 {[%emt 0:12:47]} (16... Kh8 17. Rg1) 17. Bc3 {[%emt 0:02:37] [#]} (17. Rg1 $14 {was forced to keep a grip.} Qh3 18. Rg3 Qh1+ 19. Rg1) 17... e5 $1 $17 {[%emt 0:01:49][%cal Be6e5,Be5d4][%mdl 32]} 18. Rg1 {[%emt 0:03:01]} Qh5 {[%emt 0:00:36]} 19. Bc2 $2 {[%emt 0:02:14][%mdl 8192]} (19. Bd3 $17 exd4 20. Rg5) 19... Bg4 {[%emt 0:04:12]} 20. Rg3 {[%emt 0:03:41]} (20. Rxg4 Qxg4 21. Qd3) 20... exd4 $19 {[%emt 0:03:26] Black is clearly winning.} 21. Bb2 {[%emt 0:01:34]} Ne5 {[%emt 0:04:23]} 22. Rxg4 {[%emt 0:00:07]} Nxg4 {[%emt 0:00:41]} ({Not} 22... Qxg4 23. Nxe5 Qg1+ 24. Ke2 $14) 23. Qe2 {[%emt 0:01:41]} Nc6 {[%emt 0:02:50] ...Re8 is the strong threat.} 24. O-O-O {[%emt 0:00:16]} Nge5 {[%emt 0:02:41]} 25. Be4 {[%emt 0:00:32]} Re8 {[%emt 0:01:49]} 26. Rg1 {[%emt 0:00:56]} (26. Nxd4 $142 Qxe2 27. Nxe2) 26... Nxf3 {[%emt 0:01:23]} 27. Qxf3 {[%emt 0:00:02]} Qxf3 {[%emt 0:00:07]} 28. Bxf3 {[%emt 0:00:06]} Ne5 {[%emt 0:01:04][%csl LRc4,LRf3] Weighted Error Value: White=0.65/Black=0.48} 0-1

[Event "1st Chessable Sunway Formentera 2022"]
[Site "Formentera Punta Prima"]
[Date "2022.05.01"]
[Round "3"]
[White "Aledo Yanguas, David"]
[Black "Neiman, Emmanuel"]
[Result "0-1"]
[ECO "C30"]
[WhiteElo "1908"]
[BlackElo "2248"]
[Annotator "TA"]
[PlyCount "96"]
[EventDate "2022.05.05"]
[EventType "swiss"]
[EventCountry "ESP"]
[SourceTitle "playchess.com"]
[Source "ChessBase"]
[SourceQuality "1"]
[TimeControl "40/5400+30:1800+30"]

{[%evp 12,96,35,22,27,18,37,-19,0,-30,-7,-11,-8,-8,-9,-12,-22,-18,-5,-12,-13,-8,-15,-14,-17,-73,-10,-25,-10,-8,-8,-8,-8,-7,6,0,0,-5,-7,-38,-34,-25,0,-9,-15,-9,-8,-9,0,0,0,0,0,0,0,-3,0,-97,-94,-99,-100,-102,-97,-113,-94,-520,-517,-589,-613,-820,-844,-1044,-928,-4714,-870,-1919,-1979,-29983,-29984,-29984,-29985,-29985,-29986,-29980,-29983,-29987,-29988]} 1. e4 {[%emt 0:01:24]} e5 {[%emt 0:00:07]} 2. Bc4 {[%emt 0:00:06]} Nf6 {[%emt 0:00:07]} 3. d3 {[%emt 0:00:04]} Bc5 {[%emt 0:00:03]} 4. Nc3 {[%emt 1:30:05]} d6 {[%emt 0:00:00]} 5. f4 {[%emt 0:00:00]} Nc6 {[%emt 0:00:41]} 6. Nf3 {[%emt 0:00:00]} Bg4 {[%emt 0:00:00] 6...a6 gains popularity.} 7. Na4 {[%emt 0:00:00]} O-O {[%emt 0:00:00] C30: King's Gambit Declined.} 8. Nxc5 {[%emt 0:00:00]} dxc5 {[%emt 0:00:00]} 9. c3 {[%emt 0:00:00]} (9. O-O $14) 9... Qd6 {[%emt 0:01:10] [#] The position is equal.} (9... exf4 {with more complications.} 10. Bxf4 Nh5 11. Bg5 Bxf3 12. Qd2 Qd6) 10. Qd2 $146 {[%emt 0:00:00]} (10. h3 $5 {[%cal Rh3g4]} Be6 11. Bxe6 fxe6 12. O-O $11) ({Predecessor:} 10. h3 Bxf3 11. Qxf3 Nd7 12. O-O Na5 13. Bb5 c6 14. Ba4 b5 15. Bc2 Rad8 16. Qg3 {1-0 (41) Stockova,Z (2366)-Vrana,J (2366) Czech Republic 2013}) 10... Rad8 {[%emt 0:02:58]} 11. fxe5 {[%emt 0:00:00]} Nxe5 {[%emt 0:00:10]} 12. Nxe5 {[%emt 0:00:00]} Qxe5 {[%emt 0:00:00]} 13. O-O {[%emt 0:00:00]} Be6 {[%emt 0:02:52] [#] White must now prevent ...Bxc4.} 14. Qg5 {[%emt 0:00:00]} Ng4 {[%emt 0:07:08][%csl Gg4][%cal Re5h2]} 15. Bf4 {[%emt 0:00:00]} Qxg5 {[%emt 0:00:05]} 16. Bxg5 {[%emt 0:00:00]} Rd7 {[%emt 0:01:21]} 17. Bxe6 {[%emt 0:00:00]} fxe6 {[%emt 0:00:10]} 18. Rxf8+ {[%emt 0:00:00]} Kxf8 $11 {[%emt 0:00:00][%mdl 4096] Endgame KRB-KRN} 19. Rd1 $1 {[%emt 0:00:00]} h6 {[%emt 0:00:51]} 20. Bf4 {[%emt 0:00:00]} g5 {[%emt 0:00:30]} 21. Bg3 {[%emt 0:00:00]} Ke8 {[%emt 0:10:55]} 22. Rd2 {[%emt 0:00:00]} b6 {[%emt 0:05:35][%cal Oc5c4]} 23. h3 {[%emt 0:00:00]} Nf6 {[%emt 0:00:20][%cal Of6e4]} 24. Rf2 {[%emt 0:00:00]} Nh5 {[%emt 0:13:43]} 25. Be5 {[%emt 0:00:00]} Rxd3 {[%emt 0:00:56]} 26. Bxc7 {[%emt 0:00:00]} c4 {[%emt 0:05:45]} 27. Kh2 {[%emt 0:00:00]} (27. g4 $5 {[%cal Rg4h5]} Ng3 28. Rf6 $11) 27... Ke7 {[%emt 0:00:41]} 28. Bb8 {[%emt 0:00:00]} a6 {[%emt 0:02:35]} 29. Ba7 {[%emt 0:00:00]} b5 {[%emt 0:08:53]} 30. Bc5+ {[%emt 0:00:00]} Kd7 {[%emt 0:00:00]} 31. Bf8 {[%emt 0:08:47]} Ng3 {[%emt 0:11:10]} 32. Bxh6 {[%emt 0:00:06]} Nxe4 {[%emt 0:00:09]} 33. Re2 {[%emt 0:00:07]} g4 $1 {[%emt 0:00:16] ( -> ...g3+)} 34. hxg4 {[%emt 0:02:18]} (34. Re1 $11) 34... Nf6 $17 {[%emt 0:00:05]} 35. Bd2 {[%emt 0:01:19]} Nxg4+ {[%emt 0:00:05]} 36. Kg1 {[%emt 0:00:07]} e5 {[%emt 0:00:05]} 37. Be1 {[%emt 0:01:11]} Ke6 {[%emt 0:00:04] Hoping for ...Kf5. Black is more active.} 38. g3 $2 {[%emt 0:01:56][%mdl 8192] This move loses the game for White.} (38. Bd2 $17 {is more resistant.}) 38... Kf5 $19 {[%emt 0:00:10]} 39. Kg2 {[%emt 0:00:08]} e4 {[%emt 0:00:00]} 40. b3 {[%emt 0:00:00]} e3 {[%emt 0:08:55] And now ...Ke4 would win.} 41. bxc4 {[%emt 0:01:27]} bxc4 {[%emt 0:30:05] aiming for ...Ke4.} 42. Rb2 {[%emt 0:01:30]} Ke4 {[%emt 0:02:53]} (42... Rd1 $142 43. Kf1 Ne5) 43. Rb6 {[%emt 0:02:17] [#]} Rd2+ $1 {[%emt 0:01:26][%mdl 512]} 44. Bxd2 {[%emt 0:02:15]} (44. Kh3 Kf3) 44... exd2 {[%emt 0:00:05] Black mates.} 45. Re6+ {[%emt 0:00:40]} Ne5 {[%emt 0:01:37]} 46. Rd6 {[%emt 0:00:04]} Nd3 {[%emt 0:00:10]} 47. Rd4+ {[%emt 0:00:04]} Ke3 {[%emt 0:00:26]} 48. Rd6 {[%emt 0:00:14]} d1=Q {[%emt 0:00:23] Weighted Error Value: White=0.73/Black=0.25 (precise)} 0-1

[Event "1st Chessable Sunway Formentera 2022"]
[Site "Formentera Punta Prima"]
[Date "2022.05.02"]
[Round "4"]
[White "Gukesh D"]
[Black "Santos Latasa, Jaime"]
[Result "1/2-1/2"]
[ECO "D43"]
[WhiteElo "2659"]
[BlackElo "2672"]
[Annotator "TA"]
[PlyCount "60"]
[EventDate "2022.05.05"]
[EventType "swiss"]
[EventCountry "ESP"]
[SourceTitle "playchess.com"]
[Source "ChessBase"]
[SourceQuality "1"]
[TimeControl "40/5400+30:1800+30"]

{[%evp 13,60,26,28,10,23,29,23,24,20,20,41,31,33,0,0,-10,0,0,0,0,0,0,0,0,57,0,-4,-12,-14,-7,-8,-8,0,0,0,0,0,0,0,0,0,0,0,0,0,0,0,0,0]} 1. d4 {[%emt 0:00:44]} Nf6 {[%emt 0:00:07]} 2. c4 {[%emt 0:01:00]} e6 {[%emt 0:00:47]} 3. Nf3 {[%emt 0:00:41]} d5 {[%emt 0:00:17]} 4. Nc3 {[%emt 0:00:11]} c6 {[%emt 0:00:04]} 5. Bg5 {[%emt 0:01:10]} h6 {[%emt 0:00:11]} 6. Bxf6 {[%emt 0:00:11]} Qxf6 {[%emt 0:00:06]} 7. e3 {[%emt 0:00:04]} g6 {[%emt 0:00:06]} 8. Be2 {[%emt 0:00:15] D43: Semi-Slav: 5 Bg5 h6.} Bg7 {[%emt 0:00:07]} 9. O-O {[%emt 0:00:11]} O-O {[%emt 0:00:04]} 10. e4 {[%emt 0:00:08] White has an edge.} dxe4 {[%emt 0:00:49]} 11. Nxe4 {[%emt 0:00:07]} Qf4 {[%emt 0:00:07]} 12. Qc2 {[%emt 0:04:58]} c5 {[%emt 0:00:27]} 13. Nxc5 {[%emt 0:05:04]} Nc6 {[%emt 0:01:02] [#]} 14. Nb3 $146 {[%emt 0:00:27]} ({Predecessor:} 14. d5 Nd4 15. Nxd4 Qxd4 16. Nb3 Qxb2 17. Qxb2 Bxb2 18. Rab1 Ba3 19. Bf3 exd5 20. Bxd5 {1-0 (53) Edouard,R (2649)-Keymer,V (2558) Biel 2020}) 14... a5 {[%emt 0:02:19]} 15. Rad1 {[%emt 0:03:48]} a4 {[%emt 0:01:12]} 16. Nc5 {[%emt 0:00:22]} Nxd4 {[%emt 0:17:03]} 17. Nxd4 {[%emt 0:00:32]} Bxd4 {[%emt 0:00:14]} 18. Nxa4 {[%emt 0:02:24]} b5 {[%emt 0:05:13] [#]} (18... Rd8 $1 $11) 19. Nc3 {[%emt 0:12:02]} (19. g3 $1 $14 Qe5 (19... Qf6 20. cxb5) 20. cxb5) 19... bxc4 $11 {[%emt 0:02:36] The position is equal.} 20. Qd2 {[%emt 0:08:06]} Qxd2 {[%emt 0:02:15]} 21. Rxd2 {[%emt 0:00:05]} Bxc3 {[%emt 0:01:28]} 22. bxc3 {[%emt 0:00:02]} Bb7 {[%emt 0:02:08]} 23. Bxc4 {[%emt 0:05:37]} Rfc8 {[%emt 0:00:08]} 24. Rd4 {[%emt 0:00:44]} Ba6 {[%emt 0:00:12]} 25. Bxa6 {[%emt 0:00:21]} Rxa6 {[%emt 0:00:08] KRR-KRR} 26. a4 {[%emt 0:01:12]} Rxc3 {[%emt 0:00:07]} 27. Ra1 {[%emt 0:00:05] Prevents Ra3.} Ra5 {[%emt 0:00:05]} 28. g3 {[%emt 0:00:09]} Rc2 {[%emt 0:00:17]} 29. h4 {[%emt 0:01:07]} Rb2 {[%emt 0:00:06]} 30. Kg2 {[%emt 0:00:09]} Kg7 {[%emt 1:05:39] Weighted Error Value: White=0.08 (flawless) /Black=0.06 (flawless)} 1/2-1/2

[Event "1st Chessable Sunway Formentera 2022"]
[Site "Formentera Punta Prima"]
[Date "2022.05.02"]
[Round "4"]
[White "Martirosyan, Haik M."]
[Black "Papadiamandis, Elliot"]
[Result "1-0"]
[ECO "A34"]
[WhiteElo "2652"]
[BlackElo "2373"]
[Annotator "TA"]
[PlyCount "89"]
[EventDate "2022.05.05"]
[EventType "swiss"]
[EventCountry "ESP"]
[SourceTitle "playchess.com"]
[Source "ChessBase"]
[SourceQuality "1"]
[TimeControl "40/5400+30:1800+30"]

{[%evp 9,89,10,20,4,0,0,25,3,4,0,0,0,0,0,0,0,0,0,0,-11,-12,-10,-12,-8,0,-12,0,-4,0,-37,-9,-7,9,0,4,2,16,23,34,0,0,0,0,0,0,0,0,0,27,0,32,32,33,8,34,16,53,46,43,22,24,18,344,347,326,335,345,321,425,413,552,530,711,675,1433,1420,1389,1329,1071,860,611,529]} 1. Nf3 {[%emt 0:00:48]} Nf6 {[%emt 0:01:43]} 2. c4 {[%emt 0:00:16]} c5 {[%emt 0:01:41]} 3. Nc3 {[%emt 0:00:36]} d5 {[%emt 0:00:14]} 4. cxd5 {[%emt 0:00:51]} Nxd5 {[%emt 0:00:24]} 5. e3 {[%emt 0:03:14][%cal Be2e3,Be3e4][%mdl 32]} Nc6 {[%emt 0:08:53]} 6. Bc4 {[%emt 0:03:54] A34: Symmetrical English: 2 Nc3, lines with ...d5.} Nxc3 {[%emt 0:14:09]} 7. bxc3 {[%emt 0:01:13]} e5 {[%emt 0:08:40] [#]} 8. e4 $146 {[%emt 0:03:22] White has an edge.} (8. d4 {is interesting.} exd4 9. exd4 cxd4 10. O-O) ({Predecessor:} 8. Qb3 Qf6 9. Bd5 Be7 10. O-O O-O 11. h3 Rd8 12. Nh2 Na5 13. Qb5 Rxd5 14. Qxa5 Qg6 15. Kh1 e4 16. Qb5 Rg5 17. Qe8+ Bf8 18. Ba3 Bxh3 19. Qxa8 Bxg2+ {0-1 (19) Ruzic,E-Mosonyi,I (2075) Budapest 1999}) 8... Be7 {[%emt 0:04:51]} 9. d3 {[%emt 0:02:25]} O-O {[%emt 0:01:34]} 10. Rb1 {[%emt 0:02:54]} Qd6 {[%emt 0:03:25]} 11. O-O {[%emt 0:02:37]} Rb8 {[%emt 0:03:35]} 12. Qe2 {[%emt 0:07:51]} Be6 {[%emt 0:05:39]} 13. Rd1 {[%emt 0:00:17]} Rfd8 {[%emt 0:01:22] ...Bxc4 is the strong threat.} 14. Be3 {[%emt 0:03:23]} Na5 {[%emt 0:06:52]} 15. Bb3 {[%emt 0:06:29]} Nxb3 {[%emt 0:14:44]} 16. axb3 {[%emt 0:00:23]} Bg4 {[%emt 0:00:39]} 17. h3 {[%emt 0:01:02]} Bh5 {[%emt 0:00:15]} 18. g4 {[%emt 0:07:17]} Bg6 {[%emt 0:00:11]} 19. Nh2 {[%emt 0:01:45]} Rd7 {[%emt 0:03:28]} 20. Nf1 {[%emt 0:02:37]} Bh4 {[%emt 0:05:01]} 21. f3 {[%emt 0:01:15]} Rbd8 {[%emt 0:01:38]} 22. Bc1 {[%emt 0:06:34]} Qa6 {[%emt 0:04:28][%cal Rd7d3]} 23. c4 $1 {[%emt 0:00:21]} f6 {[%emt 0:00:07]} 24. f4 {[%emt 0:04:38]} exf4 $1 {[%emt 0:00:47]} 25. Bxf4 {[%emt 0:00:32]} Qe6 {[%emt 0:01:18][%cal Of6f5]} 26. Ne3 {[%emt 0:01:36] Prevents f5.} Bg5 {[%emt 0:04:12]} 27. Bxg5 {[%emt 0:02:45]} fxg5 {[%emt 0:00:02]} 28. Nd5 {[%emt 0:00:22]} Qe5 {[%emt 0:01:20]} 29. Kg2 {[%emt 0:00:50]} Bf7 {[%emt 0:00:39][%cal Rf7d5]} 30. Qb2 {[%emt 0:00:21]} Qd6 {[%emt 0:00:31]} 31. Rf1 {[%emt 0:01:26]} Be6 {[%emt 0:00:15]} (31... b5 $5) 32. Rf3 {[%emt 0:00:55]} Rf7 {[%emt 0:00:18]} 33. Rxf7 {[%emt 0:01:25] Dancing on a razor blade. Active counter play!} Bxf7 {[%emt 0:00:06]} 34. Rf1 {[%emt 0:00:39]} Be6 {[%emt 0:00:57]} 35. Rf3 {[%emt 0:04:07]} Rf8 $2 {[%emt 0:00:55][%mdl 8192] [#] Black cannot hold the game after this.} (35... h6 $11 {and Black is okay.}) 36. Qe5 $1 $18 {[%emt 0:01:26][%mdl 512]} Qd7 {[%emt 0:00:51]} 37. Qxg5 {[%emt 0:01:28] aiming for Ne7+.} Rxf3 {[%emt 0:00:54]} 38. Kxf3 {[%emt 0:00:05][%mdl 4096] Endgame Hoping for Nf6+. KQB-KQN} Kf7 {[%emt 0:00:28] Against Nf6} 39. Qe5 {[%emt 0:01:37]} b6 {[%emt 0:01:07]} 40. Nf4 {[%emt 0:00:00] White is clearly winning.} h6 {[%emt 0:00:00]} 41. Ke3 {[%emt 0:01:10]} (41. Nxe6 Qxd3+ 42. Kf4 Qd2+ 43. Kf3 Qd3+ 44. Kf4 Qd2+ 45. Kg3 Qe3+ 46. Kh2 Qe2+ 47. Kh1 Qf1+ 48. Kh2 Qf2+ 49. Kh1 Qf1+ 50. Kh2 Qf2+ 51. Kh1 Qf1+ $11) 41... Qe7 {[%emt 0:01:55]} 42. Qh5+ {[%emt 0:02:47]} Kg8 {[%emt 0:00:25]} 43. Nxe6 {[%emt 0:00:06]} ({Not} 43. Qe5 Kf7 44. Qb8 (44. Nxe6 Qxe6 45. Qd5 Ke7 $18) 44... Qd7 $18) 43... Qxe6 {[%emt 0:01:40]} 44. Qd5 {[%emt 0:00:02]} Kf7 {[%emt 0:00:12]} 45. d4 {[%emt 0:00:09] Weighted Error Value: White=0.06 (flawless) /Black=0.34} 1-0

[Event "1st Chessable Sunway Formentera 2022"]
[Site "Formentera Punta Prima"]
[Date "2022.05.02"]
[Round "4"]
[White "Sasikiran, Krishnan"]
[Black "Romanishin, Oleg M"]
[Result "1-0"]
[ECO "C96"]
[WhiteElo "2651"]
[BlackElo "2400"]
[Annotator "TA"]
[PlyCount "69"]
[EventDate "2022.05.05"]
[EventType "swiss"]
[EventCountry "ESP"]
[SourceTitle "playchess.com"]
[Source "ChessBase"]
[SourceQuality "1"]
[TimeControl "40/5400+30:1800+30"]

{[%evp 26,69,50,36,77,61,61,57,60,63,53,36,35,35,70,55,59,55,135,127,228,243,227,232,262,250,276,280,280,279,287,277,262,227,316,289,411,376,507,500,975,943,1175,1078,2041,1932]} 1. e4 {[%emt 0:00:12]} e5 {[%emt 0:00:11]} 2. Nf3 {[%emt 0:00:09]} Nc6 {[%emt 0:00:05]} 3. Bb5 {[%emt 0:00:11]} a6 {[%emt 0:00:06]} 4. Ba4 {[%emt 0:00:08]} Nf6 {[%emt 0:00:05]} 5. O-O {[%emt 0:00:12]} Be7 {[%emt 0:00:06]} 6. Re1 {[%emt 0:00:14]} b5 {[%emt 0:03:47]} 7. Bb3 {[%emt 0:00:10]} d6 {[%emt 0:00:05]} 8. c3 {[%emt 0:00:11]} O-O {[%emt 0:00:08]} 9. h3 {[%emt 0:00:12]} Na5 {[%emt 0:00:07]} 10. Bc2 {[%emt 0:00:20]} c5 {[%emt 0:00:20]} 11. d4 {[%emt 0:00:18]} Bb7 {[%emt 0:03:10]} 12. d5 {[%emt 0:15:28]} Nc4 {[%emt 0:00:41]} 13. b3 {[%emt 0:01:02]} Nb6 {[%emt 0:00:08]} 14. a4 {[%emt 0:00:34]} Bc8 {[%emt 0:00:39] C96: Closed Ruy Lopez: Chigorin Defence: 11 d4, replies other than 11...Qc7.} 15. Qd3 $5 {[%emt 0:22:53][%mdl 4] Leaves trodden paths.} Bd7 {[%emt 0:04:13] [#]} 16. c4 $146 {[%emt 0:09:00]} ({Predecessor:} 16. Nxe5 dxe5 17. d6 Bc6 18. dxe7 Qxe7 19. Qe2 Qe6 20. Nd2 g6 21. Qe3 Nbd7 22. Nf3 {1-0 (30) Della Morte,G (2369)-Cuberli,E (2147) Buenos Aires 2020}) 16... Ne8 {[%emt 0:05:58] White is slightly better.} 17. axb5 {[%emt 0:09:56]} axb5 {[%emt 0:00:09]} 18. Rxa8 {[%emt 0:00:03]} Qxa8 {[%emt 0:00:44]} 19. cxb5 {[%emt 0:00:28]} f5 {[%emt 0:03:36]} 20. Nc3 {[%emt 0:04:04]} ({Much worse is} 20. exf5 $6 Bxf5 21. Qe2 Nxd5 $11) 20... fxe4 {[%emt 0:08:10]} 21. Qxe4 {[%emt 0:02:26]} Nf6 {[%emt 0:06:46]} ({Better is} 21... Bf5 $14 22. Qe2 Bxc2 23. Qxc2 Nxd5) 22. Qh4 $16 {[%emt 0:30:06][%cal Oc2h7] Strongly threatening Bxh7+!} Nbxd5 (22... g6 $16) 23. Nxd5 $18 {[%emt 0:00:00]} Qxd5 24. Rd1 {[%emt 0:01:27]} Qb7 {[#]} 25. Bxh7+ $1 {[%emt 0:00:30][%mdl 512]} Kf7 (25... Nxh7 26. Qxe7) 26. Ng5+ {[%emt 0:00:10]} Ke8 27. Bg6+ {[%emt 0:00:05][%cal Bh7g6,Bg6f7,Bf7b3,Bb3a4][%mdl 32]} Kd8 28. b4 {[%emt 0:00:06]} Qxb5 {aiming for ...Qe2.} 29. Nf7+ {[%emt 0:00:00]} Rxf7 30. Bxf7 {[%emt 0:00:00]} Qe2 (30... Qa4 $142 31. Re1 Qxb4 32. Qxb4 cxb4) 31. Bb3 {[%emt 0:00:25]} Be6 {[#]} (31... Ne4 $2 32. Qh8+ Be8 33. Be3 $18) 32. Ba4 {[%emt 0:00:20] White is clearly winning.} e4 (32... Qh5 $142 33. Qxh5 Nxh5 34. bxc5 d5) 33. Qh8+ {[%emt 0:00:00]} Ng8 34. Qxg7 {[%emt 0:00:10]} Qa2 {[#]} 35. Bg5 $1 {[%emt 0:00:05] Weighted Error Value: White=0.05 (flawless) /Black=0.50} 1-0